fUSD/lending_fUSD_20240630
["ID","MTS","AMOUNT","RATE_DAILY","PERIOD"]
[330687239,1719711048476,-500.0,0.00013808,3]
[330687240,1719711048485,-500.0,0.00013808,3]
[330687241,1719711048494,-500.0,0.00013808,3]
[330687242,1719711048503,-500.0,0.00013808,3]
[330687243,1719711048512,-1569.95,0.00013808,3]
[330687244,1719711048521,-500.0,0.00013808,3]
[330687245,1719711048530,-500.0,0.00013808,3]
[330687246,1719711048539,-500.0,0.00013808,3]
[330687247,1719711048548,-4687.88,0.00013808,3]
[330687248,1719711048557,-500.0,0.00013808,3]
[330687249,1719711048567,-500.0,0.00013808,3]
[330687250,1719711048580,-500.0,0.00013808,3]
[330687251,1719711048589,-500.0,0.00013808,3]
[330687252,1719711048598,-500.0,0.00013808,3]
[330687253,1719711048607,-684.17,0.00013808,3]
[330687254,1719711048618,-500.0,0.00013808,3]
[330687255,1719711048627,-500.0,0.00013808,3]
[330687256,1719711048638,-500.0,0.00013808,3]
[330687257,1719711048646,-713.16,0.00013808,3]
[330687258,1719711048656,-500.0,0.00013808,3]
[330687259,1719711048665,-500.0,0.00013808,3]
[330687260,1719711048674,-500.0,0.00013808,3]
[330687261,1719711048684,-500.0,0.00013808,3]
[330687262,1719711048693,-500.0,0.00013808,3]
[330687263,1719711048703,-500.0,0.00013808,3]
[330687264,1719711048712,-500.0,0.00013808,3]
[330687265,1719711048721,-1295.72,0.00013808,3]
[330687266,1719711048730,-500.0,0.00013808,3]
[330687267,1719711048739,-500.0,0.00013808,3]
[330687268,1719711048748,-500.0,0.00013808,3]
[330687269,1719711048757,-500.0,0.00013808,3]
[330687270,1719711048766,-1900.6,0.00013808,3]
[330687271,1719711048775,-500.0,0.00013808,3]
[330687272,1719711048784,-151.0,0.00013808,2]
[330687273,1719711048793,-151.0,0.00013808,2]
[330687274,1719711048802,-500.0,0.00013808,3]
[330687275,1719711048811,-500.0,0.00013808,3]
[330687276,1719711048820,-710.78,0.00013808,3]
[330687277,1719711048829,-500.0,0.00013808,3]
[330687278,1719711048840,-500.0,0.00013808,3]
[330687279,1719711048850,-500.0,0.00013808,3]
[330687280,1719711048860,-500.0,0.00013808,3]
[330687282,1719711048870,-500.0,0.00013808,3]
[330687283,1719711048879,-1699.63,0.00013808,3]
[330687284,1719711048891,-500.0,0.00013808,3]
[330687285,1719711048900,-500.0,0.00013808,3]
[330687286,1719711048909,-500.0,0.00013808,3]
[330687287,1719711048919,-601.07,0.00013808,3]
[330687288,1719711048928,-500.0,0.00013808,3]
[330687289,1719711048938,-1066.9,0.00013808,3]
[330687290,1719711048947,-500.0,0.00013808,3]
[330687291,1719711048957,-500.0,0.00013808,3]
[330687292,1719711048966,-418.8692445,0.00013808,3]
[330687293,1719711048976,-500.0,0.00013808,3]
[330687294,1719711048985,-832.37,0.00013808,3]
[330687295,1719711048995,-500.0,0.00013808,3]
[330687296,1719711049004,-500.0,0.00013808,3]
[330687297,1719711049013,-500.0,0.00013808,3]
[330687298,1719711049022,-1071.66,0.00013808,3]
[330687299,1719711049031,-500.0,0.00013808,3]
[330687300,1719711049041,-500.0,0.00013808,3]
[330687301,1719711049051,-500.0,0.00013808,3]
[330687302,1719711049060,-500.0,0.00013808,3]
[330687303,1719711049069,-500.0,0.00013808,3]
[330687304,1719711049078,-716.2,0.00013808,3]
[330687305,1719711049087,-533.26,0.00013808,3]
[330687306,1719711049096,-761.79,0.00013808,3]
[330687307,1719711049105,-519.14,0.00013808,3]
[330687308,1719711049114,-500.0,0.00013808,3]
[330687309,1719711049123,-500.0,0.00013808,3]
[330687310,1719711049133,-911.02,0.00013808,3]
[330687311,1719711049142,-500.0,0.00013808,3]
[330687312,1719711049151,-663.53,0.00013808,3]
[330687313,1719711049160,-500.0,0.00013808,3]
[330687314,1719711049169,-500.0,0.00013808,3]
[330687315,1719711049177,-500.98,0.00013808,3]
[330687316,1719711049187,-1050.04,0.00013808,3]
[330687317,1719711049196,-755.44,0.00013808,3]
[330687318,1719711049205,-1768.33,0.00013808,3]
[330687319,1719711049214,-500.0,0.00013808,3]
[330687320,1719711049223,-500.0,0.00013808,3]
[330687321,1719711049232,-627.64,0.00013808,3]
[330687322,1719711049241,-500.0,0.00013808,3]
[330687323,1719711049250,-500.0,0.00013808,3]
[330687324,1719711049259,-500.0,0.00013808,3]
[330687325,1719711049268,-500.0,0.00013808,3]
[330687326,1719711049277,-500.0,0.00013808,3]
[330687327,1719711049286,-500.0,0.00013808,3]
[330687328,1719711049296,-500.0,0.00013808,3]
[330687329,1719711049304,-500.0,0.00013808,3]
[330687330,1719711049314,-644.01,0.00013808,3]
[330687331,1719711049323,-500.0,0.00013808,3]
[330687332,1719711049332,-859.12,0.00013808,3]
[330687333,1719711049342,-889.76,0.00013808,3]
[330687334,1719711049351,-500.0,0.00013808,3]
[330687335,1719711049362,-500.0,0.00013808,3]
[330687336,1719711049373,-500.0,0.00013808,2]
[330687337,1719711049382,-500.0,0.00013808,3]
[330687338,1719711049391,-534.75,0.00013808,3]
[330687339,1719711049400,-500.0,0.00013808,3]
[330687340,1719711049409,-500.0,0.00013808,3]
[330687341,1719711049418,-500.0,0.00013808,3]
[330687342,1719711049426,-500.0,0.00013808,3]
[330687343,1719711049435,-500.0,0.00013808,3]
[330687344,1719711049444,-1138.76,0.00013808,3]
[330687345,1719711049453,-500.0,0.00013808,3]
[330687346,1719711049462,-651.9,0.00013808,3]
[330687347,1719711049471,-500.0,0.00013808,3]
[330687348,1719711049480,-578.29,0.00013808,3]
[330687349,1719711049490,-649.15,0.00013808,3]
[330687350,1719711049498,-617.2,0.00013808,3]
[330687351,1719711049507,-721.45,0.00013808,3]
[330687352,1719711049516,-500.0,0.00013808,3]
[330687353,1719711049525,-500.0,0.00013808,3]
[330687354,1719711049534,-500.0,0.00013808,3]
[330687355,1719711049543,-595.24,0.00013808,3]
[330687356,1719711049552,-500.0,0.00013808,3]
[330687357,1719711049561,-500.0,0.00013808,3]
[330687358,1719711049573,-500.0,0.00013808,3]
[330687359,1719711049582,-551.62,0.00013808,3]
[330687360,1719711049592,-500.0,0.00013808,3]
[330687361,1719711049601,-500.0,0.00013808,3]
[330687362,1719711049610,-500.0,0.00013808,3]
[330687363,1719711049619,-500.0,0.00013808,3]
[330687364,1719711049628,-548.68,0.00013808,3]
[330687365,1719711049638,-500.0,0.00013808,3]
[330687366,1719711049647,-780.35,0.00013808,3]
[330687367,1719711049656,-500.0,0.00013808,3]
[330687368,1719711049666,-500.0,0.00013808,3]
[330687369,1719711049675,-500.0,0.00013808,3]
[330687370,1719711049685,-540.99,0.00013808,3]
[330687371,1719711049694,-737.39,0.00013808,3]
[330687372,1719711049703,-500.0,0.00013808,3]
[330687373,1719711049713,-500.0,0.00013808,3]
[330687374,1719711049723,-517.82,0.00013808,3]
[330687375,1719711049732,-500.0,0.00013808,3]
[330687376,1719711049741,-500.0,0.00013808,3]
[330687377,1719711049752,-500.0,0.00013808,3]
[330687378,1719711049762,-500.0,0.00013808,3]
[330687379,1719711049771,-500.0,0.00013808,3]
[330687380,1719711049781,-500.0,0.00013808,3]
[330687381,1719711049790,-605.18,0.00013808,3]
[330687382,1719711049800,-500.0,0.00013808,3]
[330687383,1719711049809,-600.31,0.00013808,3]
[330687384,1719711049820,-880.06,0.00013808,3]
[330687385,1719711049829,-500.0,0.00013808,3]
[330687386,1719711049839,-500.0,0.00013808,3]
[330687387,1719711049849,-772.55,0.00013808,3]
[330687388,1719711049858,-537.38,0.00013808,3]
[330687389,1719711049867,-1133.19,0.00013808,3]
[330687390,1719711049877,-582.47,0.00013808,3]
[330687391,1719711049891,-500.0,0.00013808,3]
[330687392,1719711049901,-2714.67,0.00013808,3]
[330687393,1719711049911,-510.91,0.00013808,3]
[330687394,1719711049920,-862.26,0.00013808,3]
[330687395,1719711049930,-500.0,0.00013808,3]
[330687396,1719711049941,-802.38,0.00013808,3]
[330687397,1719711049950,-500.0,0.00013808,3]
[330687398,1719711049959,-500.0,0.00013808,3]
[330687399,1719711049969,-500.0,0.00013808,3]
[330687400,1719711049979,-521.73,0.00013808,3]
[330687401,1719711049988,-500.0,0.00013808,3]
[330687402,1719711049998,-500.0,0.00013808,3]
[330687403,1719711050007,-617.99398714,0.00013808,3]
[330687404,1719711050017,-500.0,0.00013808,3]
[330687405,1719711050026,-2040.84,0.00013808,3]
[330687406,1719711050036,-500.0,0.00013808,3]
[330687407,1719711050046,-500.0,0.00013808,3]
[330687408,1719711050055,-532.39,0.00013808,3]
[330687409,1719711050065,-500.0,0.00013808,3]
[330687410,1719711050076,-1265.1,0.00013808,3]
[330687411,1719711050085,-500.0,0.00013808,3]
[330687412,1719711050095,-500.0,0.00013808,3]
[330687413,1719711050104,-500.0,0.00013808,3]
[330687414,1719711050114,-500.0,0.00013808,3]
[330687415,1719711050123,-500.0,0.00013808,3]
[330687416,1719711050133,-952.19,0.00013808,3]
[330687417,1719711050143,-500.0,0.00013808,3]
[330687418,1719711050151,-588.51,0.00013808,3]
[330687419,1719711050160,-529.97,0.00013808,3]
[330687420,1719711050168,-500.0,0.00013808,3]
[330687421,1719711050178,-500.0,0.00013808,3]
[330687422,1719711050188,-691.24,0.00013808,3]
[330687423,1719711050197,-615.55085729,0.00013808,3]
[330687424,1719711050206,-500.0,0.00013808,3]
[330687425,1719711050215,-660.79,0.00013808,3]
[330687426,1719711050225,-500.0,0.00013808,3]
[330687427,1719711050234,-671.71,0.00013808,3]
[330687428,1719711050243,-151.0,0.00013808,2]
[330687429,1719711050252,-500.0,0.00013808,3]
[330687430,1719711050262,-500.0,0.00013808,3]
[330687431,1719711050271,-500.0,0.00013808,3]
[330687432,1719711050281,-1531.98,0.00013808,3]
[330687433,1719711050290,-500.0,0.00013808,3]
[330687434,1719711050299,-500.0,0.00013808,3]
[330687435,1719711050309,-500.0,0.00013808,3]
[330687436,1719711050319,-548.68,0.00013808,3]
[330687437,1719711050328,-1034.28,0.00013808,3]
[330687438,1719711050337,-500.0,0.00013808,3]
[330687439,1719711050346,-588.83,0.00013808,3]
[330687440,1719711050356,-500.0,0.00013808,3]
[330687441,1719711050365,-500.0,0.00013808,3]
[330687442,1719711050374,-538.51,0.00013808,3]
[330687443,1719711050383,-500.0,0.00013808,3]
[330687444,1719711050393,-500.0,0.00013808,3]
[330687445,1719711050403,-500.0,0.00013808,3]
[330687446,1719711050412,-527.93,0.00013808,3]
[330687447,1719711050421,-564.75,0.00013808,3]
[330687448,1719711050430,-511.23,0.00013808,3]
[330687449,1719711050439,-500.0,0.00013808,3]
[330687450,1719711050449,-500.0,0.00013808,3]
[330687451,1719711050459,-500.0,0.00013808,3]
[330687452,1719711050468,-599.85,0.00013808,3]
[330687453,1719711050477,-500.0,0.00013808,3]
[330687454,1719711050486,-998.73,0.00013808,3]
[330687455,1719711050495,-879.24,0.00013808,3]
[330687456,1719711050505,-500.0,0.00013808,3]
[330687457,1719711050514,-151.0,0.00013808,2]
[330687458,1719711050524,-151.0,0.00013808,2]
[330687459,1719711050533,-151.0,0.00013808,2]
[330687460,1719711050543,-1046.19,0.00013808,3]
[330687461,1719711050553,-1382.68,0.00013808,3]
[330687462,1719711050562,-500.0,0.00013808,3]
[330687463,1719711050573,-500.0,0.00013808,3]
[330687464,1719711050583,-500.0,0.00013808,3]
[330687465,1719711050592,-500.0,0.00013808,3]
[330687466,1719711050601,-500.0,0.00013808,3]
[330687467,1719711050611,-500.0,0.00013808,3]
[330687468,1719711050621,-151.0,0.00013808,2]
[330687469,1719711050630,-151.0,0.00013808,2]
[330687470,1719711050644,-151.0,0.00013808,2]
[330687471,1719711050652,-1014.61,0.00013808,3]
[330687472,1719711050662,-500.0,0.00013808,3]
[330687473,1719711050672,-500.0,0.00013808,3]
[330687474,1719711050681,-500.0,0.00013808,3]
[330687475,1719711050690,-500.0,0.00013808,3]
[330687476,1719711050699,-159.07,0.00013808,3]
[330687477,1719711050709,-500.0,0.00013808,3]
[330687478,1719711050718,-500.0,0.00013808,3]
[330687479,1719711050727,-500.0,0.00013808,3]
[330687480,1719711050737,-500.0,0.00013808,3]
[330687481,1719711050746,-500.0,0.00013808,3]
[330687482,1719711050756,-1918.33,0.00013808,3]
[330687483,1719711050765,-500.0,0.00013808,3]
[330687484,1719711050774,-1152.62,0.00013808,3]
[330687485,1719711050785,-500.0,0.00013808,3]
[330687486,1719711050794,-672.21,0.00013808,3]
[330687487,1719711050803,-500.0,0.00013808,3]
[330687488,1719711050812,-500.0,0.00013808,3]
[330687489,1719711050822,-608.54968945,0.00013808,3]
[330687490,1719711050831,-1012.12,0.00013808,3]
[330687491,1719711050841,-500.0,0.00013808,3]
[330687492,1719711050851,-805.69,0.00013808,3]
[330687493,1719711050860,-728.19,0.00013808,3]
[330687494,1719711050870,-500.75,0.00013808,3]
[330687495,1719711050879,-151.0,0.00013808,2]
[330687496,1719711050891,-151.0,0.00013808,2]
[330687497,1719711050900,-500.0,0.00013808,3]
[330687498,1719711050909,-289.22934,0.00013808,2]
[330687499,1719711050919,-1145.72,0.00013808,3]
[330687500,1719711050928,-500.0,0.00013808,3]
[330687501,1719711050938,-636.14,0.00013808,3]
[330687502,1719711050947,-500.0,0.00013808,3]
[330687503,1719711050956,-959.16,0.00013808,3]
[330687504,1719711050965,-500.0,0.00013808,3]
[330687505,1719711050974,-500.0,0.00013808,3]
[330687506,1719711050984,-532.97,0.00013808,3]
[330687507,1719711050994,-726.22,0.00013808,3]
[330687508,1719711051003,-796.05,0.00013808,3]
[330687509,1719711051012,-500.0,0.00013808,3]
[330687510,1719711051021,-500.0,0.00013808,3]
[330687511,1719711051031,-500.0,0.00013808,3]
[330687512,1719711051040,-500.0,0.00013808,3]
[330687513,1719711051049,-500.0,0.00013808,3]
[330687514,1719711051058,-500.0,0.00013808,3]
[330687515,1719711051067,-500.0,0.00013808,3]
[330687516,1719711051078,-500.0,0.00013808,3]
[330687517,1719711051088,-500.0,0.00013808,3]
[330687518,1719711051099,-500.0,0.00013808,3]
[330687519,1719711051109,-1185.2,0.00013808,3]
[330687520,1719711051118,-500.0,0.00013808,3]
[330687521,1719711051127,-500.0,0.00013808,3]
[330687522,1719711051138,-500.0,0.00013808,3]
[330687523,1719711051147,-583.84,0.00013808,3]
[330687524,1719711051156,-500.0,0.00013808,3]
[330687525,1719711051166,-296.18,0.00013808,3]
[330687526,1719711051175,-500.0,0.00013808,3]
[330687527,1719711051184,-500.0,0.00013808,3]
[330687528,1719711051193,-2306.38,0.00013808,3]
[330687529,1719711051202,-500.0,0.00013808,3]
[330687530,1719711051211,-712.33,0.00013808,3]
[330687531,1719711051220,-500.0,0.00013808,3]
[330687532,1719711051229,-500.0,0.00013808,3]
[330687533,1719711051238,-567.32,0.00013808,3]
[330687534,1719711051247,-500.0,0.00013808,3]
[330687535,1719711051256,-1188.2,0.00013808,3]
[330687536,1719711051265,-500.0,0.00013808,3]
[330687537,1719711051274,-500.0,0.00013808,3]
[330687538,1719711051283,-500.0,0.00013808,3]
[330687539,1719711051292,-500.0,0.00013808,3]
[330687540,1719711051302,-500.0,0.00013808,3]
[330687541,1719711051311,-500.0,0.00013808,3]
[330687542,1719711051320,-1071.25,0.00013808,3]
[330687543,1719711051329,-791.93,0.00013808,3]
[330687544,1719711051339,-500.0,0.00013808,3]
[330687545,1719711051348,-708.58,0.00013808,3]
[330687546,1719711051357,-549.76,0.00013808,3]
[330687547,1719711051366,-500.0,0.00013808,3]
[330687548,1719711051378,-759.26,0.00013808,3]
[330687549,1719711051389,-538.9,0.00013808,3]
[330687550,1719711051398,-500.0,0.00013808,3]
[330687551,1719711051406,-500.0,0.00013808,3]
[330687552,1719711051418,-500.0,0.00013808,3]
[330687553,1719711051427,-500.0,0.00013808,3]
[330687554,1719711051436,-500.0,0.00013808,3]
[330687555,1719711051445,-500.0,0.00013808,3]
[330687556,1719711051455,-500.0,0.00013808,3]
[330687557,1719711051465,-608.49,0.00013808,3]
[330687558,1719711051474,-660.44,0.00013808,3]
[330687559,1719711051483,-500.0,0.00013808,3]
[330687560,1719711051493,-2629.63,0.00013808,3]
[330687561,1719711051501,-500.0,0.00013808,3]
[330687562,1719711051511,-500.0,0.00013808,3]
[330687563,1719711051520,-1298.08,0.00013808,3]
[330687564,1719711051529,-500.0,0.00013808,3]
[330687565,1719711051538,-721.44,0.00013808,3]
[330687566,1719711051547,-500.0,0.00013808,3]
[330687567,1719711051556,-551.41,0.00013808,3]
[330687568,1719711051565,-945.69,0.00013808,3]
[330687569,1719711051574,-525.15,0.00013808,3]
[330687570,1719711051584,-500.0,0.00013808,3]
[330687571,1719711051596,-1393.7,0.00013808,3]
[330687572,1719711051605,-1708.5,0.00013808,3]
[330687573,1719711051614,-781.98,0.00013808,3]
[330687574,1719711051623,-686.06,0.00013808,3]
[330687575,1719711051634,-500.0,0.00013808,3]
[330687576,1719711051644,-500.0,0.00013808,3]
[330687577,1719711051653,-500.0,0.00013808,3]
[330687578,1719711051663,-574.91,0.00013808,3]
[330687579,1719711051672,-500.0,0.00013808,3]
[330687580,1719711051683,-1608.03,0.00013808,3]
[330687581,1719711051693,-500.0,0.00013808,3]
[330687582,1719711051702,-500.0,0.00013808,3]
[330687583,1719711051711,-500.0,0.00013808,3]
[330687584,1719711051720,-500.0,0.00013808,3]
[330687585,1719711051729,-500.0,0.00013808,3]
[330687586,1719711051738,-500.0,0.00013808,3]
[330687587,1719711051747,-679.33,0.00013808,3]
[330687588,1719711051756,-500.0,0.00013808,3]
[330687589,1719711051766,-500.0,0.00013808,3]
[330687590,1719711051775,-500.0,0.00013808,3]
[330687591,1719711051784,-500.0,0.00013808,3]
[330687592,1719711051793,-899.57,0.00013808,3]
[330687593,1719711051803,-500.0,0.00013808,3]
[330687594,1719711051812,-4351.69,0.00013808,3]
[330687595,1719711051821,-590.76,0.00013808,3]
[330687596,1719711051830,-500.0,0.00013808,3]
[330687597,1719711051839,-500.0,0.00013808,3]
[330687598,1719711051849,-581.58,0.00013808,3]
[330687599,1719711051858,-500.0,0.00013808,3]
[330687600,1719711051867,-719.02,0.00013808,3]
[330687601,1719711051877,-500.0,0.00013808,3]
[330687602,1719711051888,-500.0,0.00013808,3]
[330687603,1719711051897,-680.73,0.00013808,3]
[330687604,1719711051907,-1466.68,0.00013808,3]
[330687605,1719711051916,-500.0,0.00013808,3]
[330687606,1719711051926,-1052.34,0.00013808,3]
[330687607,1719711051935,-500.0,0.00013808,3]
[330687608,1719711051944,-551.78133976,0.00013808,3]
[330687609,1719711051953,-8291.65,0.00013808,3]
[330687610,1719711051962,-500.0,0.00013808,3]
[330687611,1719711051972,-500.0,0.00013808,3]
[330687612,1719711051981,-500.0,0.00013808,3]
[330687613,1719711051990,-500.0,0.00013808,3]
[330687614,1719711051998,-500.0,0.00013808,3]
[330687615,1719711052008,-500.0,0.00013808,3]
[330687616,1719711052017,-857.65,0.00013808,3]
[330687617,1719711052026,-500.0,0.00013808,3]
[330687618,1719711052035,-733.86,0.00013808,3]
[330687619,1719711052044,-2739.13,0.00013808,3]
[330687620,1719711052054,-500.0,0.00013808,3]
[330687621,1719711052063,-500.0,0.00013808,3]
[330687622,1719711052072,-500.0,0.00013808,3]
[330687623,1719711052081,-1160.63,0.00013808,3]
[330687624,1719711052090,-709.63,0.00013808,3]
[330687625,1719711052099,-1644.16,0.00013808,3]
[330687626,1719711052108,-500.0,0.00013808,3]
[330687627,1719711052117,-500.0,0.00013808,3]
[330687628,1719711052128,-500.0,0.00013808,3]
[330687629,1719711052138,-500.0,0.00013808,3]
[330687630,1719711052148,-688.73,0.00013808,3]
[330687631,1719711052157,-500.0,0.00013808,3]
[330687632,1719711052166,-151.0,0.00013808,2]
[330687633,1719711052175,-151.0,0.00013808,2]
[330687634,1719711052184,-151.0,0.00013808,2]
[330687635,1719711052195,-500.0,0.00013808,3]
[330687636,1719711052206,-151.0,0.00013808,2]
[330687637,1719711052216,-151.0,0.00013808,2]
[330687638,1719711052226,-151.0,0.00013808,2]
[330687639,1719711052237,-500.0,0.00013808,3]
[330687640,1719711052246,-515.33,0.00013808,3]
[330687641,1719711052258,-1136.46,0.00013808,3]
[330687642,1719711052268,-952.21,0.00013808,3]
[330687643,1719711052278,-1657.35,0.00013808,3]
[330687644,1719711052288,-651.27,0.00013808,3]
[330687645,1719711052298,-1024.41,0.00013808,3]
[330687646,1719711052308,-500.0,0.00013808,3]
[330687647,1719711052317,-500.0,0.00013808,3]
[330687648,1719711052328,-1272.44,0.00013808,3]
[330687649,1719711052338,-569.76,0.00013808,3]
[330687650,1719711052350,-666.12,0.00013808,3]
[330687651,1719711052359,-500.0,0.00013808,3]
[330687652,1719711052369,-500.0,0.00013808,3]
[330687653,1719711052379,-500.0,0.00013808,3]
[330687654,1719711052388,-990.57,0.00013808,3]
[330687655,1719711052398,-2346.07,0.00013808,3]
[330687656,1719711052513,-500.0,0.00013808,3]
[330687657,1719711052532,-2333.23,0.00013808,3]
[330687658,1719711052544,-500.0,0.00013808,3]
[330687659,1719711052555,-973.19,0.00013808,3]
[330687660,1719711052564,-500.0,0.00013808,3]
[330687661,1719711052574,-737.96,0.00013808,3]
[330687662,1719711052585,-681.0,0.00013808,3]
[330687663,1719711052600,-500.0,0.00013808,3]
[330687664,1719711052609,-500.0,0.00013808,3]
[330687665,1719711052619,-2093.74,0.00013808,3]
[330687666,1719711052629,-500.0,0.00013808,3]
[330687667,1719711052640,-500.0,0.00013808,3]
[330687668,1719711052649,-500.0,0.00013808,3]
[330687669,1719711052660,-1109.7,0.00013808,3]
[330687670,1719711052673,-500.0,0.00013808,3]
[330687671,1719711052683,-741.16,0.00013808,3]
[330687672,1719711052692,-1584.98,0.00013808,3]
[330687673,1719711052702,-517.54,0.00013808,3]
[330687674,1719711052711,-500.0,0.00013808,3]
[330687675,1719711052720,-17519.3,0.00013808,3]
[330687676,1719711052731,-500.0,0.00013808,3]
[330687677,1719711052741,-2255.93,0.00013808,3]
[330687678,1719711052751,-500.0,0.00013808,3]
[330687679,1719711052760,-730.7,0.00013808,3]
[330687680,1719711052770,-2373.06,0.00013808,3]
[330687681,1719711052779,-733.6,0.00013808,3]
[330687682,1719711052789,-1366.43,0.00013808,3]
[330687683,1719711052799,-1233.97,0.00013808,3]
[330687684,1719711052808,-500.0,0.00013808,3]
[330687685,1719711052818,-151.0,0.00013808,2]
[330687686,1719711052827,-500.0,0.00013808,3]
[330687687,1719711052837,-151.0,0.00013808,2]
[330687688,1719711052847,-151.0,0.00013808,2]
[330687689,1719711052856,-973.08,0.00013808,3]
[330687690,1719711052866,-500.0,0.00013808,3]
[330687691,1719711052876,-500.0,0.00013808,3]
[330687692,1719711052887,-2224.15,0.00013808,3]
[330687693,1719711052897,-500.0,0.00013808,3]
[330687694,1719711052906,-500.0,0.00013808,3]
[330687695,1719711052916,-565.49,0.00013808,3]
[330687696,1719711052925,-1453.68,0.00013808,3]
[330687697,1719711052935,-1103.39,0.00013808,3]
[330687698,1719711052944,-500.0,0.00013808,3]
[330687699,1719711052953,-500.0,0.00013808,3]
[330687700,1719711052963,-500.0,0.00013808,3]
[330687701,1719711052972,-500.0,0.00013808,3]
[330687702,1719711052982,-500.0,0.00013808,3]
[330687703,1719711052992,-2749.71,0.00013808,3]
[330687704,1719711053002,-500.0,0.00013808,3]
[330687705,1719711053012,-1470.04,0.00013808,3]
[330687706,1719711053022,-500.0,0.00013808,3]
[330687707,1719711053031,-1000.06,0.00013808,3]
[330687708,1719711053041,-500.0,0.00013808,3]
[330687709,1719711053050,-3074.88,0.00013808,3]
[330687710,1719711053059,-789.6,0.00013808,3]
[330687711,1719711053070,-587.36,0.00013808,3]
[330687712,1719711053079,-1717.46,0.00013808,3]
[330687713,1719711053089,-553.57,0.00013808,3]
[330687714,1719711053098,-538.78,0.00013808,3]
[330687715,1719711053108,-734.77,0.00013808,3]
[330687716,1719711053118,-4030.58,0.00013808,3]
[330687717,1719711053127,-1619.26,0.00013808,3]
[330687718,1719711053137,-872.59,0.00013808,3]
[330687719,1719711053146,-505.1,0.00013808,3]
[330687720,1719711053155,-500.0,0.00013808,3]
[330687721,1719711053165,-151.0,0.00013808,2]
[330687722,1719711053175,-151.0,0.00013808,2]
[330687723,1719711053184,-500.0,0.00013808,3]
[330687724,1719711053193,-151.0,0.00013808,2]
[330687725,1719711053202,-1040.75,0.00013808,3]
[330687726,1719711053212,-1019.73,0.00013808,3]
[330687727,1719711053221,-500.0,0.00013808,3]
[330687728,1719711053231,-500.0,0.00013808,3]
[330687729,1719711053241,-500.0,0.00013808,3]
[330687730,1719711053251,-2026.5,0.00013808,3]
[330687731,1719711053262,-917.98,0.00013808,3]
[330687732,1719711053271,-500.0,0.00013808,3]
[330687733,1719711053280,-544.73,0.00013808,3]
[330687734,1719711053290,-500.0,0.00013808,3]
[330687735,1719711053299,-1434.62,0.00013808,3]
[330687736,1719711053308,-914.82,0.00013808,3]
[330687737,1719711053317,-2283.96,0.00013808,3]
[330687738,1719711053327,-853.8,0.00013808,3]
[330687739,1719711053337,-806.6,0.00013808,3]